[Event "Early-Titled-Tuesday-Blitz-April-02-2024"]
[Site "Chess.com"]
[Date "2024.04.02"]
[Round "9"]
[White "mightysmasher"]
[Black "GMKrikor"]
[Result "0-1"]
[WhiteElo "2581"]
[BlackElo "2886"]
[TimeControl "180+1"]
[EndTime "9:46:15 PDT"]
[Termination "GMKrikor won by checkmate"]

1. e4 {[%clk 0:03:00.9]} 1... c5 {[%clk 0:03:00.1]} 2. c3 {[%clk 0:03:00.9]}
2... Nf6 {[%clk 0:02:58.1]} 3. e5 {[%clk 0:03:01]} 3... Nd5 {[%clk 0:02:58.5]}
4. d4 {[%clk 0:03:01.5]} 4... cxd4 {[%clk 0:02:58.8]} 5. cxd4 {[%clk 0:03:02.4]}
5... d6 {[%clk 0:02:58.1]} 6. Nf3 {[%clk 0:03:01.8]} 6... Nc6 {[%clk 0:02:56.8]}
7. Bc4 {[%clk 0:03:01.3]} 7... dxe5 {[%clk 0:02:51.3]} 8. dxe5 {[%clk
0:02:58.6]} 8... Ndb4 {[%clk 0:02:51]} 9. Qxd8+ {[%clk 0:02:55.3]} 9... Nxd8
{[%clk 0:02:49.7]} 10. Na3 {[%clk 0:02:54.9]} 10... a6 {[%clk 0:02:37.7]} 11.
O-O {[%clk 0:02:50.1]} 11... Ndc6 {[%clk 0:02:36.4]} 12. Bd2 {[%clk 0:02:42.1]}
12... Bd7 {[%clk 0:02:19.4]} 13. Rfe1 {[%clk 0:02:37.6]} 13... e6 {[%clk
0:02:19.3]} 14. Bxb4 {[%clk 0:02:34.5]} 14... Bxb4 {[%clk 0:02:13.8]} 15. Red1
{[%clk 0:02:32.7]} 15... Ke7 {[%clk 0:02:09.1]} 16. Nc2 {[%clk 0:02:31.2]} 16...
Bc5 {[%clk 0:02:09.1]} 17. Rac1 {[%clk 0:02:29]} 17... Rac8 {[%clk 0:02:06.5]}
18. a3 {[%clk 0:02:26.7]} 18... Rhd8 {[%clk 0:02:05.4]} 19. Nce1 {[%clk
0:02:20.6]} 19... Ba7 {[%clk 0:02:02.4]} 20. Nd3 {[%clk 0:02:19]} 20... Be8
{[%clk 0:02:00.3]} 21. Nf4 {[%clk 0:02:17.5]} 21... Rxd1+ {[%clk 0:01:53.9]} 22.
Rxd1 {[%clk 0:02:16.9]} 22... Bb8 {[%clk 0:01:40.7]} 23. Nd3 {[%clk 0:02:08.4]}
23... Rd8 {[%clk 0:01:35.7]} 24. Bb3 {[%clk 0:02:04.9]} 24... Nd4 {[%clk
0:01:20.2]} 25. Nxd4 {[%clk 0:01:54.8]} 25... Rxd4 {[%clk 0:01:21.1]} 26. Nc5
{[%clk 0:01:42.2]} 26... Rxd1+ {[%clk 0:01:19.1]} 27. Bxd1 {[%clk 0:01:43.1]}
27... Bxe5 {[%clk 0:01:14.8]} 28. Nxb7 {[%clk 0:01:39.7]} 28... Bxb2 {[%clk
0:01:12.1]} 29. a4 {[%clk 0:01:38.5]} 29... Bc3 {[%clk 0:00:56.3]} 30. Nc5
{[%clk 0:01:35.4]} 30... a5 {[%clk 0:00:55.5]} 31. Kf1 {[%clk 0:01:35.4]} 31...
Bb4 {[%clk 0:00:55.8]} 32. Ne4 {[%clk 0:01:32.8]} 32... f5 {[%clk 0:00:54.9]}
33. Ng5 {[%clk 0:01:32.7]} 33... h6 {[%clk 0:00:54.7]} 34. Nf3 {[%clk
0:01:31.9]} 34... Kf6 {[%clk 0:00:50.6]} 35. Ke2 {[%clk 0:01:27.5]} 35... e5
{[%clk 0:00:50.2]} 36. Bb3 {[%clk 0:01:26.5]} 36... Bc6 {[%clk 0:00:49.4]} 37.
g3 {[%clk 0:01:24]} 37... g5 {[%clk 0:00:49.3]} 38. Ng1 {[%clk 0:01:14.4]} 38...
e4 {[%clk 0:00:46.5]} 39. Ke3 {[%clk 0:01:10.7]} 39... Bc5+ {[%clk 0:00:39.8]}
40. Ke2 {[%clk 0:01:10.2]} 40... Ke5 {[%clk 0:00:39.5]} 41. Nh3 {[%clk
0:01:06.3]} 41... Bd7 {[%clk 0:00:37.5]} 42. f4+ {[%clk 0:01:03.1]} 42... exf3+
{[%clk 0:00:36.5]} 43. Kf1 {[%clk 0:01:02.7]} 43... Bc6 {[%clk 0:00:31.1]} 44.
Nf2 {[%clk 0:00:57.9]} 44... Bxf2 {[%clk 0:00:31]} 45. Kxf2 {[%clk 0:00:57.9]}
45... Kd4 {[%clk 0:00:31.3]} 46. Bc2 {[%clk 0:00:54.9]} 46... Be4 {[%clk
0:00:27.5]} 47. Bb3 {[%clk 0:00:54.1]} 47... Bc6 {[%clk 0:00:12.8]} 48. Bc2
{[%clk 0:00:51.4]} 48... Be4 {[%clk 0:00:12.9]} 49. Bb3 {[%clk 0:00:51.3]} 49...
Kc3 {[%clk 0:00:12.3]} 50. Be6 {[%clk 0:00:50.5]} 50... g4 {[%clk 0:00:04.7]}
51. Bc8 {[%clk 0:00:41.4]} 51... Kb4 {[%clk 0:00:03]} 52. Bd7 {[%clk 0:00:40.8]}
52... Bc2 {[%clk 0:00:02]} 53. Ke3 {[%clk 0:00:40.3]} 53... Bxa4 {[%clk
0:00:01.6]} 54. Bxf5 {[%clk 0:00:40.1]} 54... Bc6 {[%clk 0:00:02.2]} 55. Bxg4
{[%clk 0:00:39.8]} 55... a4 {[%clk 0:00:02.9]} 56. Be6 {[%clk 0:00:35.8]} 56...
a3 {[%clk 0:00:03.4]} 57. h4 {[%clk 0:00:35.6]} 57... Ba4 {[%clk 0:00:03.7]} 58.
Ba2 {[%clk 0:00:32.4]} 58... Bb3 {[%clk 0:00:04.1]} 59. Bb1 {[%clk 0:00:32.7]}
59... Kc3 {[%clk 0:00:04.8]} 60. g4 {[%clk 0:00:30.9]} 60... Kb2 {[%clk
0:00:05.1]} 61. g5 {[%clk 0:00:31.2]} 61... hxg5 {[%clk 0:00:05]} 62. h5 {[%clk
0:00:31.2]} 62... Kxb1 {[%clk 0:00:04.6]} 63. h6 {[%clk 0:00:31.5]} 63... Bc2
{[%clk 0:00:05.1]} 64. Kxf3 {[%clk 0:00:31.2]} 64... Bh7 {[%clk 0:00:06]} 65.
Kg4 {[%clk 0:00:31.9]} 65... a2 {[%clk 0:00:06.2]} 66. Kxg5 {[%clk 0:00:32.8]}
66... a1=Q {[%clk 0:00:06.6]} 67. Kh5 {[%clk 0:00:33.7]} 67... Qf6 {[%clk
0:00:06.5]} 68. Kg4 {[%clk 0:00:34.2]} 68... Kc2 {[%clk 0:00:07.1]} 69. Kh5
{[%clk 0:00:34.2]} 69... Qg6+ {[%clk 0:00:07]} 70. Kh4 {[%clk 0:00:34.4]} 70...
Kd3 {[%clk 0:00:07.9]} 71. Kh3 {[%clk 0:00:34.7]} 71... Ke3 {[%clk 0:00:08.6]}
72. Kh4 {[%clk 0:00:34.7]} 72... Kf3 {[%clk 0:00:09.2]} 73. Kh3 {[%clk
0:00:35.2]} 73... Qxh6# {[%clk 0:00:09.8]} 0-1

[Event "Early-Titled-Tuesday-Blitz-April-02-2024"]
[Site "Chess.com"]
[Date "2024.04.02"]
[Round "9"]
[White "FredddieCroderg"]
[Black "Payyappat"]
[Result "1-0"]
[WhiteElo "2373"]
[BlackElo "2510"]
[TimeControl "180+1"]
[EndTime "9:46:17 PDT"]
[Termination "FredddieCroderg won by checkmate"]

1. d4 {[%clk 0:02:33.8]} 1... Nf6 {[%clk 0:02:57.8]} 2. c4 {[%clk 0:02:33.4]}
2... c5 {[%clk 0:02:56.2]} 3. d5 {[%clk 0:02:32.2]} 3... e6 {[%clk 0:02:56.7]}
4. Nc3 {[%clk 0:02:31.1]} 4... exd5 {[%clk 0:02:57.6]} 5. cxd5 {[%clk
0:02:30.7]} 5... d6 {[%clk 0:02:58.5]} 6. e4 {[%clk 0:02:30.1]} 6... g6 {[%clk
0:02:59.4]} 7. f3 {[%clk 0:02:29.7]} 7... Bg7 {[%clk 0:02:59.9]} 8. Bg5 {[%clk
0:02:28.3]} 8... O-O {[%clk 0:02:59.9]} 9. Qd2 {[%clk 0:02:27.8]} 9... Re8
{[%clk 0:02:59.4]} 10. Be2 {[%clk 0:02:24]} 10... a6 {[%clk 0:02:57.3]} 11. a4
{[%clk 0:02:22.1]} 11... Nbd7 {[%clk 0:02:56.8]} 12. Nh3 {[%clk 0:02:21.7]}
12... Qa5 {[%clk 0:02:55.7]} 13. Ra3 {[%clk 0:02:19.1]} 13... Ne5 {[%clk
0:02:37.7]} 14. Nf2 {[%clk 0:02:17.9]} 14... c4 {[%clk 0:02:37.2]} 15. O-O
{[%clk 0:02:15.3]} 15... Qc5 {[%clk 0:02:31.5]} 16. a5 {[%clk 0:02:10.2]} 16...
Bd7 {[%clk 0:02:28]} 17. Be3 {[%clk 0:01:59.9]} 17... Qc7 {[%clk 0:02:25.7]} 18.
Bb6 {[%clk 0:01:58.6]} 18... Qc8 {[%clk 0:02:25.4]} 19. Bd4 {[%clk 0:01:58.4]}
19... Bb5 {[%clk 0:02:21.8]} 20. h3 {[%clk 0:01:53.4]} 20... Nh5 {[%clk
0:02:18.9]} 21. f4 {[%clk 0:01:51.1]} 21... Nd3 {[%clk 0:02:02.5]} 22. Bxg7
{[%clk 0:01:45.7]} 22... Nxf2 {[%clk 0:02:00.9]} 23. Bd4 {[%clk 0:01:28.3]}
23... Nxe4 {[%clk 0:01:57.9]} 24. Nxe4 {[%clk 0:01:26.4]} 24... Rxe4 {[%clk
0:01:58.8]} 25. Bxh5 {[%clk 0:01:18.5]} 25... gxh5 {[%clk 0:01:57.8]} 26. f5
{[%clk 0:01:16.6]} 26... Rxd4 {[%clk 0:00:42.8]} 27. Qxd4 {[%clk 0:01:10.5]}
27... Qc5 {[%clk 0:00:41.7]} 28. Qxc5 {[%clk 0:01:10]} 28... dxc5 {[%clk
0:00:42.6]} 29. Rd1 {[%clk 0:01:02.9]} 29... Kf8 {[%clk 0:00:37.4]} 30. f6
{[%clk 0:00:58.5]} 30... Rd8 {[%clk 0:00:33.7]} 31. d6 {[%clk 0:00:57.9]} 31...
Bd7 {[%clk 0:00:24.1]} 32. Rg3 {[%clk 0:00:50.5]} 32... Be6 {[%clk 0:00:18.6]}
33. Rg5 {[%clk 0:00:48.3]} 33... Ke8 {[%clk 0:00:14.8]} 34. Rxc5 {[%clk
0:00:46.1]} 34... Rc8 {[%clk 0:00:13.7]} 35. Rxc8+ {[%clk 0:00:41.7]} 35... Bxc8
{[%clk 0:00:14.6]} 36. Kf2 {[%clk 0:00:39.6]} 36... Be6 {[%clk 0:00:14.4]} 37.
Ke3 {[%clk 0:00:38]} 37... Kd7 {[%clk 0:00:15]} 38. Kf4 {[%clk 0:00:37.5]} 38...
h6 {[%clk 0:00:14.7]} 39. Ke5 {[%clk 0:00:36.1]} 39... Kc6 {[%clk 0:00:13.6]}
40. Rd4 {[%clk 0:00:32.2]} 40... Kd7 {[%clk 0:00:11.5]} 41. Rh4 {[%clk
0:00:31.6]} 41... Kc6 {[%clk 0:00:10.9]} 42. Rxh5 {[%clk 0:00:31.3]} 42... Kb5
{[%clk 0:00:11.3]} 43. Rxh6 {[%clk 0:00:30.7]} 43... Kxa5 {[%clk 0:00:11.3]} 44.
g4 {[%clk 0:00:27.1]} 44... Kb4 {[%clk 0:00:07.6]} 45. g5 {[%clk 0:00:26.7]}
45... Kb3 {[%clk 0:00:07.8]} 46. g6 {[%clk 0:00:26.1]} 46... Kxb2 {[%clk
0:00:07.3]} 47. g7 {[%clk 0:00:26]} 47... c3 {[%clk 0:00:08.2]} 48. g8=Q {[%clk
0:00:25]} 48... c2 {[%clk 0:00:08.8]} 49. Qg2 {[%clk 0:00:20.6]} 49... b5 {[%clk
0:00:08.6]} 50. Rh7 {[%clk 0:00:17]} 50... Kb1 {[%clk 0:00:08]} 51. Qxc2+ {[%clk
0:00:14.1]} 51... Kxc2 {[%clk 0:00:07.8]} 52. Rxf7 {[%clk 0:00:13.7]} 52... Bxf7
{[%clk 0:00:08.7]} 53. d7 {[%clk 0:00:13.6]} 53... b4 {[%clk 0:00:08.8]} 54.
d8=Q {[%clk 0:00:13.4]} 54... b3 {[%clk 0:00:09.7]} 55. Qc7+ {[%clk 0:00:13.5]}
55... Kd2 {[%clk 0:00:09.9]} 56. Qxf7 {[%clk 0:00:13.4]} 56... b2 {[%clk
0:00:10.8]} 57. Qa2 {[%clk 0:00:13.1]} 57... Kc1 {[%clk 0:00:11.7]} 58. f7
{[%clk 0:00:12.8]} 58... b1=Q {[%clk 0:00:12.2]} 59. Qxb1+ {[%clk 0:00:11.6]}
59... Kxb1 {[%clk 0:00:13.1]} 60. f8=Q {[%clk 0:00:11]} 60... a5 {[%clk
0:00:14]} 61. Qc5 {[%clk 0:00:10.6]} 61... a4 {[%clk 0:00:14.9]} 62. Qb4+ {[%clk
0:00:10.6]} 62... Kc2 {[%clk 0:00:14.2]} 63. Qxa4+ {[%clk 0:00:11.5]} 63... Kb2
{[%clk 0:00:14.5]} 64. Qc4 {[%clk 0:00:11.5]} 64... Ka1 {[%clk 0:00:14.6]} 65.
Kd4 {[%clk 0:00:11.5]} 65... Kb2 {[%clk 0:00:13.8]} 66. Kd3 {[%clk 0:00:11.3]}
66... Ka1 {[%clk 0:00:14.5]} 67. Qb4 {[%clk 0:00:10.6]} 67... Ka2 {[%clk
0:00:14.5]} 68. Kc2 {[%clk 0:00:08.8]} 68... Ka1 {[%clk 0:00:15.4]} 69. Qa4#
{[%clk 0:00:07.9]} 1-0

[Event "Early-Titled-Tuesday-Blitz-April-02-2024"]
[Site "Chess.com"]
[Date "2024.04.02"]
[Round "9"]
[White "Elegance_Riks"]
[Black "kachsona"]
[Result "0-1"]
[WhiteElo "2768"]
[BlackElo "2623"]
[TimeControl "180+1"]
[EndTime "9:46:18 PDT"]
[Termination "kachsona won by resignation"]

1. Nf3 {[%clk 0:03:00.9]} 1... d5 {[%clk 0:02:52.2]} 2. c4 {[%clk 0:02:59.7]}
2... d4 {[%clk 0:02:51.7]} 3. g3 {[%clk 0:02:58.3]} 3... Nc6 {[%clk 0:02:50.8]}
4. Bg2 {[%clk 0:02:58.7]} 4... e5 {[%clk 0:02:50.5]} 5. O-O {[%clk 0:02:59.1]}
5... e4 {[%clk 0:02:45.2]} 6. Ne1 {[%clk 0:02:59.3]} 6... h5 {[%clk 0:02:45.9]}
7. d3 {[%clk 0:02:53.6]} 7... e3 {[%clk 0:02:46.2]} 8. Nf3 {[%clk 0:02:38.4]}
8... Nf6 {[%clk 0:02:29.9]} 9. fxe3 {[%clk 0:02:34.4]} 9... dxe3 {[%clk
0:02:15.7]} 10. d4 {[%clk 0:02:33.7]} 10... Qe7 {[%clk 0:01:31.1]} 11. Nc3
{[%clk 0:02:31.4]} 11... Bg4 {[%clk 0:01:27]} 12. Nd5 {[%clk 0:02:31]} 12...
Nxd5 {[%clk 0:01:21]} 13. cxd5 {[%clk 0:02:31.2]} 13... Nb4 {[%clk 0:01:17.2]}
14. Qa4+ {[%clk 0:02:22.9]} 14... Bd7 {[%clk 0:01:14.2]} 15. Qb3 {[%clk
0:02:21.9]} 15... Qd6 {[%clk 0:00:49.4]} 16. Ne5 {[%clk 0:02:12.3]} 16... f6
{[%clk 0:00:47.8]} 17. Nc4 {[%clk 0:02:06.9]} 17... Qa6 {[%clk 0:00:36.8]} 18.
a3 {[%clk 0:02:05.6]} 18... O-O-O {[%clk 0:00:30.6]} 19. Bxe3 {[%clk 0:02:01.6]}
19... Ba4 {[%clk 0:00:27.1]} 20. Qc3 {[%clk 0:01:35]} 20... Nxd5 {[%clk
0:00:27]} 21. Qd3 {[%clk 0:01:26.8]} 21... Nxe3 {[%clk 0:00:26.3]} 22. Nxe3
{[%clk 0:01:25.1]} 22... Qxd3 {[%clk 0:00:26.5]} 23. exd3 {[%clk 0:01:25.7]}
23... Rxd4 {[%clk 0:00:27.2]} 24. Rac1 {[%clk 0:01:23.7]} 24... Rxd3 {[%clk
0:00:23.7]} 25. Nd5 {[%clk 0:01:23.8]} 25... Bc6 {[%clk 0:00:18.2]} 26. Bh3+
{[%clk 0:01:20.9]} 26... Kb8 {[%clk 0:00:17]} 27. Nb4 {[%clk 0:01:21.2]} 27...
Bxb4 {[%clk 0:00:15.5]} 28. axb4 {[%clk 0:01:20.5]} 28... Re8 {[%clk 0:00:14.6]}
29. Rc5 {[%clk 0:01:10.9]} 29... Rd5 {[%clk 0:00:10.2]} 30. Rfc1 {[%clk
0:01:04.7]} 30... a6 {[%clk 0:00:08.3]} 31. R5c2 {[%clk 0:00:55.7]} 31... Rd6
{[%clk 0:00:05.8]} 32. Rc5 {[%clk 0:00:46.6]} 32... g6 {[%clk 0:00:05.6]} 33.
Bf1 {[%clk 0:00:43.5]} 33... Ree6 {[%clk 0:00:03.7]} 34. b5 {[%clk 0:00:40.8]}
34... axb5 {[%clk 0:00:03.5]} 35. Bxb5 {[%clk 0:00:41.2]} 35... Bxb5 {[%clk
0:00:03.3]} 36. Rxb5 {[%clk 0:00:41.9]} 36... Re2 {[%clk 0:00:03.6]} 37. Rf1
{[%clk 0:00:33.7]} 37... f5 {[%clk 0:00:03.4]} 38. Rf2 {[%clk 0:00:33.3]} 38...
Rdd2 {[%clk 0:00:02.8]} 39. Rxe2 {[%clk 0:00:33.3]} 39... Rxe2 {[%clk
0:00:03.7]} 40. b4 {[%clk 0:00:33]} 40... Re4 {[%clk 0:00:02.4]} 41. Rd5 {[%clk
0:00:27.3]} 41... Rxb4 {[%clk 0:00:02.3]} 42. Rd7 {[%clk 0:00:24.6]} 42... Kc8
{[%clk 0:00:01.6]} 43. Rg7 {[%clk 0:00:24.8]} 43... Rb6 {[%clk 0:00:01.7]} 44.
Rg8+ {[%clk 0:00:23.6]} 44... Kd7 {[%clk 0:00:02.4]} 45. Rg7+ {[%clk 0:00:24.2]}
45... Kd6 {[%clk 0:00:03.1]} 46. Rxg6+ {[%clk 0:00:24.2]} 46... Ke5 {[%clk
0:00:03.9]} 47. Rg5 {[%clk 0:00:24.5]} 47... c5 {[%clk 0:00:04.4]} 48. Rxh5
{[%clk 0:00:25.1]} 48... c4 {[%clk 0:00:04.1]} 49. g4 {[%clk 0:00:25.8]} 49...
c3 {[%clk 0:00:04.6]} 50. Rxf5+ {[%clk 0:00:26.3]} 50... Kd4 {[%clk 0:00:04.9]}
51. Rf4+ {[%clk 0:00:26.8]} 51... Ke3 {[%clk 0:00:04.5]} 52. Rc4 {[%clk
0:00:26.4]} 52... Rc6 {[%clk 0:00:04.7]} 53. Ra4 {[%clk 0:00:21.6]} 53... c2
{[%clk 0:00:04.9]} 54. Ra3+ {[%clk 0:00:22.2]} 54... Kf4 {[%clk 0:00:05.2]} 55.
Ra4+ {[%clk 0:00:21.8]} 55... Kg5 {[%clk 0:00:05.5]} 56. Ra5+ {[%clk 0:00:22.4]}
56... Kxg4 {[%clk 0:00:06.2]} 57. Ra2 {[%clk 0:00:22.7]} 57... Kf4 {[%clk
0:00:05.8]} 58. Ra4+ {[%clk 0:00:22.2]} 58... Kf5 {[%clk 0:00:05.9]} 59. Ra5+
{[%clk 0:00:22.7]} 59... Kf6 {[%clk 0:00:06.2]} 60. Ra1 {[%clk 0:00:23]} 60...
c1=Q+ {[%clk 0:00:06.4]} 61. Rxc1 {[%clk 0:00:23.7]} 61... Rxc1+ {[%clk
0:00:06.9]} 62. Kf2 {[%clk 0:00:24.6]} 62... b5 {[%clk 0:00:07]} 63. Ke3 {[%clk
0:00:25.5]} 63... Rh1 {[%clk 0:00:07.3]} 64. Kd2 {[%clk 0:00:26.4]} 64... Rxh2+
{[%clk 0:00:07.8]} 65. Kc3 {[%clk 0:00:27.3]} 65... Rh4 {[%clk 0:00:08.4]} 66.
Kb3 {[%clk 0:00:27.7]} 66... Ke6 {[%clk 0:00:09]} 67. Kc3 {[%clk 0:00:28]} 67...
Kd5 {[%clk 0:00:09.7]} 68. Kd3 {[%clk 0:00:28.9]} 68... Kc5 {[%clk 0:00:10.2]}
69. Ke3 {[%clk 0:00:29.8]} 69... b4 {[%clk 0:00:10.7]} 70. Kf3 {[%clk
0:00:30.7]} 70... Rd4 {[%clk 0:00:11]} 71. Kg3 {[%clk 0:00:31.6]} 71... Rd8
{[%clk 0:00:11.5]} 0-1

[Event "Early-Titled-Tuesday-Blitz-April-02-2024"]
[Site "Chess.com"]
[Date "2024.04.02"]
[Round "9"]
[White "Kate1606"]
[Black "Maurijs"]
[Result "1-0"]
[WhiteElo "2139"]
[BlackElo "2273"]
[TimeControl "180+1"]
[EndTime "9:46:24 PDT"]
[Termination "Kate1606 won on time"]

1. e4 {[%clk 0:03:00.3]} 1... c5 {[%clk 0:02:59.8]} 2. Nc3 {[%clk 0:02:57]} 2...
d6 {[%clk 0:03:00]} 3. f4 {[%clk 0:02:57.5]} 3... Nf6 {[%clk 0:02:59.9]} 4. Nf3
{[%clk 0:02:57.9]} 4... g6 {[%clk 0:02:59.7]} 5. Bb5+ {[%clk 0:02:56.1]} 5...
Bd7 {[%clk 0:02:59.3]} 6. O-O {[%clk 0:02:50.2]} 6... Bg7 {[%clk 0:02:58.9]} 7.
d3 {[%clk 0:02:46.7]} 7... O-O {[%clk 0:02:58.6]} 8. Qe1 {[%clk 0:02:46.1]} 8...
Bxb5 {[%clk 0:02:56.6]} 9. Nxb5 {[%clk 0:02:47]} 9... Qd7 {[%clk 0:02:56.7]} 10.
Nc3 {[%clk 0:02:45.1]} 10... Nc6 {[%clk 0:02:56.5]} 11. h3 {[%clk 0:02:38.7]}
11... Rac8 {[%clk 0:02:54.3]} 12. Be3 {[%clk 0:02:36.7]} 12... b6 {[%clk
0:01:55.6]} 13. Qf2 {[%clk 0:02:26]} 13... d5 {[%clk 0:01:55.3]} 14. exd5 {[%clk
0:01:58]} 14... Nxd5 {[%clk 0:01:55]} 15. Nxd5 {[%clk 0:01:57.2]} 15... Qxd5
{[%clk 0:01:55.9]} 16. c3 {[%clk 0:01:35.1]} 16... Qxd3 {[%clk 0:01:52]} 17.
Rad1 {[%clk 0:01:34.8]} 17... Qc4 {[%clk 0:01:41.9]} 18. a3 {[%clk 0:01:23.4]}
18... Rcd8 {[%clk 0:01:36.3]} 19. Rfe1 {[%clk 0:01:18.9]} 19... Qb3 {[%clk
0:01:34.8]} 20. Rb1 {[%clk 0:00:58.5]} 20... Na5 {[%clk 0:01:29.7]} 21. Nd2
{[%clk 0:00:56.3]} 21... Qc2 {[%clk 0:01:25]} 22. Rec1 {[%clk 0:00:52.7]} 22...
Qd3 {[%clk 0:01:24.4]} 23. Rd1 {[%clk 0:00:46.3]} 23... Nc4 {[%clk 0:01:21.4]}
24. Nxc4 {[%clk 0:00:41.4]} 24... Qxc4 {[%clk 0:01:22.3]} 25. Qf3 {[%clk
0:00:35.4]} 25... Qb3 {[%clk 0:01:12]} 26. Kf2 {[%clk 0:00:27.4]} 26... Qc2+
{[%clk 0:01:05.2]} 27. Qe2 {[%clk 0:00:20]} 27... Qb3 {[%clk 0:01:00.3]} 28. Rd3
{[%clk 0:00:14.4]} 28... Rxd3 {[%clk 0:00:57.7]} 29. Qxd3 {[%clk 0:00:15.3]}
29... c4 {[%clk 0:00:51.9]} 30. Qd2 {[%clk 0:00:14.3]} 30... Qb5 {[%clk
0:00:41]} 31. Rd1 {[%clk 0:00:13.2]} 31... Bf6 {[%clk 0:00:37.2]} 32. Kg1 {[%clk
0:00:11.5]} 32... a5 {[%clk 0:00:34.9]} 33. Qe2 {[%clk 0:00:09.2]} 33... Rc8
{[%clk 0:00:29.6]} 34. Rd2 {[%clk 0:00:09.3]} 34... Qc6 {[%clk 0:00:28.3]} 35.
Qd1 {[%clk 0:00:09.1]} 35... Kg7 {[%clk 0:00:26.3]} 36. Kh2 {[%clk 0:00:06.4]}
36... b5 {[%clk 0:00:25.1]} 37. Bd4 {[%clk 0:00:06.5]} 37... Bxd4 {[%clk
0:00:23.8]} 38. Rxd4 {[%clk 0:00:07.4]} 38... b4 {[%clk 0:00:21.4]} 39. axb4
{[%clk 0:00:07.2]} 39... axb4 {[%clk 0:00:22.3]} 40. cxb4 {[%clk 0:00:06.7]}
40... Qb5 {[%clk 0:00:21.8]} 41. Qd2 {[%clk 0:00:07]} 41... Rb8 {[%clk
0:00:20.7]} 42. Qc3 {[%clk 0:00:03.6]} 42... Kg8 {[%clk 0:00:16.3]} 43. Rxc4
{[%clk 0:00:03.5]} 43... Qf5 {[%clk 0:00:15]} 44. Rc7 {[%clk 0:00:02.2]} 44...
Qe6 {[%clk 0:00:10.6]} 45. Rc4 {[%clk 0:00:01.7]} 45... h5 {[%clk 0:00:08.6]}
46. Kg1 {[%clk 0:00:02.1]} 46... Qf5 {[%clk 0:00:07.4]} 47. Qc1 {[%clk
0:00:01.6]} 47... Rd8 {[%clk 0:00:06.7]} 48. Qc3 {[%clk 0:00:01.7]} 48... Qd5
{[%clk 0:00:06.5]} 49. Kh2 {[%clk 0:00:02.2]} 49... Qd6 {[%clk 0:00:06]} 50. Rc8
{[%clk 0:00:02.1]} 50... Qxf4+ {[%clk 0:00:05.2]} 51. Kg1 {[%clk 0:00:01.9]}
51... Rxc8 {[%clk 0:00:04.4]} 52. Qxc8+ {[%clk 0:00:01.6]} 52... Kg7 {[%clk
0:00:05.3]} 53. Qc3+ {[%clk 0:00:02]} 53... f6 {[%clk 0:00:05]} 54. b5 {[%clk
0:00:02.2]} 54... Qb8 {[%clk 0:00:02.7]} 55. Qc6 {[%clk 0:00:01.9]} 55... Qa7+
{[%clk 0:00:02.2]} 56. b6 {[%clk 0:00:01.9]} 1-0